Workbook

Sheet MSU
B1: Mikko Virtanen | E1: 23.7.1977
B2: SUPERPESIS | E2: Runkosarja | I2: Kärkilyönnit (KL), pesänvälit | P2: Runkosarja TOP-30 | U2: Alempi loppusarja | AB2: Ylempi loppusarja TOP-10 | AG2: Play off, voitot, voittoprosentti | AL2: Arvo-ottelut | AO2: Mitalit
B3: Vuosi | C3: Sija | D3: Seura | E3: OTT | F3: KUN | G3: LÖI | H3: TOI | I3: KL | J3: 0 > 1 | K3: 1 > 2 | L3: 2 > 3 | M3: 3 > k | N3: KL-% | P3: LÖI | Q3: TOI | R3: L+T | S3: KL | U3: OTT | V3: KUN | W3: LÖI | X3: TOI | Y3: KL | Z3: KL-% | AB3: LÖI | AC3: TOI | AD3: L+T | AE3: KL | AG3: Puolivälierät | AH3: Välierät | AI3: Pronssi | AJ3: Finaalit | AL3: IL | AM3: LL | AN3: hSM | AO3: K | AP3: H | AQ3: P
B4: 1995 | C4: 6. | D4: UPV | F4: ykköspesis | AA4: 0
B5: 1996 | C5: 6. | D5: UPV | F5: ykköspesis | AA5: 0
B6: 1997 | C6: 7. | D6: LP | E6: 26 | F6: 2 | G6: 30 | H6: 3 | I6: 43 | J6: 2 | K6: 0 | L6: 9 | M6: 32 | N6: 35.8 % | P6: 20. | AG6: 0-3 SoJy
B7: 1998 | C7: 13. | D7: LP | E7: 28 | F7: 1 | G7: 16 | H7: 5 | I7: 57 | J7: 21 | K7: 6 | L7: 13 | M7: 17 | N7: 39.6 % | U7: 9 | V7: 0 | W7: 1 | X7: 2 | Y7: 16 | Z7: 36.4 % | AA7: 0
B8: 1999 | C8: 1. | D8: LP | F8: ykköspesis | AA8: 0
B9: 2000 | C9: 11. | D9: LP | E9: 28 | F9: 1 | G9: 20 | H9: 6 | I9: 62 | J9: 18 | K9: 10 | L9: 13 | M9: 21 | N9: 37.1 % | U9: 7 | V9: 1 | W9: 7 | X9: 2 | Y9: 18 | Z9: 39.1 % | AA9: 66
B10: 2001 | C10: 9. | D10: IPV | E10: 27 | F10: 1 | G10: 38 | H10: 4 | I10: 53 | J10: 1 | K10: 1 | L10: 12 | M10: 39 | N10: 34.6 % | P10: 25.
B11: 2002 | C11: 10. | D11: IPV | E11: 29 | F11: 2 | G11: 38 | H11: 2 | I11: 72 | J11: 1 | K11: 10 | L11: 21 | M11: 40 | N11: 39.8 % | P11: 13. | R11: 27. | U11: 7 | V11: 0 | W11: 10 | X11: 1 | Y11: 13 | Z11: 34.2 %
B12: 2003 | C12: 15. | D12: KöLa | F12: ykköspesis
B13: 2004 | C13: 1. | D13: KöLa | F13: suomensarja
B14: 2005 | C14: 6. | D14: UPV | F14: ykköspesis
B15: 2006 | C15: 3. | D15: UPV | F15: ykköspesis | U15: 7 | V15: 1 | W15: 17 | X15: 2 | Y15: 28 | Z15: 53.8 %
B16: Yhteensä | E16: 138 | F16: 7 | G16: 142 | H16: 20 | I16: 287 | J16: 43 | K16: 27 | L16: 68 | M16: 149 | N16: 37.5 % | P16: 0-0-0 | Q16: 0-0-0 | R16: 0-0-0 | S16: 0-0-0 | U16: 30 | V16: 2 | W16: 35 | X16: 7 | Y16: 75 | Z16: 41.7 % | AA16: =SUM(AA3:AA15) -> 66 | AB16: 0-0-0 | AC16: 0-0-0 | AD16: 0-0-0 | AE16: 0-0-0 | AG16: 0/1 | AH16: 0/0 | AI16: 0/0 | AJ16: 0/0 | AL16: =SUM(AL4:AL15) -> 0 | AM16: 0 | AN16: 0 | AO16: 0 | AP16: 0 | AQ16: 0
AG17: 0.0 % | AH17: 0.0 % | AI17: 0.0 % | AJ17: 0.0 %
B18: Pesispörssi | D18: 261.0
B20: URA SUPERISSA | E20: OTT | F20: KUN | G20: LÖI | H20: TOI | I20: KL | K20: ka/L | L20: ka/T | M20: ka/KL | N20: KL-% | P20: ENSIMMÄISET RUNKOSARJASSA | AG20: ENSIMMÄISET PUDOTUSPELEISSÄ | AL20: YLEISÖ
B21: Runkosarja | E21: 138 | F21: 7 | G21: 142 | H21: 20 | I21: 287 | K21: 1.08 | L21: 0.14 | M21: 2.08 | N21: 37.5 % | P21: Ottelu | R21: 15.05. 1997 HP - LP 0-1 (2-2, 0-3) | AA21: 1. ottelu | AD21: 19 v 9 kk 22 pv | AG21: Ottelu | AH21: 1. 19.08. 1997 SoJy - LP 2-1 s | AL21: 2150 | AN21: 20 v 0 kk 27 pv
B22: Ylempi loppusarja | E22: 3 | F22: 0 | G22: 2 | H22: 0 | I22: 3 | K22: 0.67 | L22: 0.00 | M22: 1.00 | N22: 42.9 % | P22: Lyöty | R22: 15.05. 1997 HP - LP 0-1 (2-2, 0-3) | AA22: 1. ottelu | AD22: 19 v 9 kk 22 pv | AG22: Lyöty | AH22: 1. 19.08. 1997 SoJy - LP 2-1 s | AL22: 2150 | AN22: 20 v 0 kk 27 pv
B23: Alempi loppusarja | E23: 30 | F23: 2 | G23: 35 | H23: 7 | I23: 75 | K23: 1.23 | L23: 0.23 | M23: 2.50 | N23: 41.7 % | P23: Tuotu | R23: 10.06. 1997 SMJ - LP 2-0 (1-0, 1-8, 2-0) | AA23: 9. ottelu | AD23: 19 v 10 kk 18 pv | AG23: Tuotu
B24: KAIKKI | E24: 171 | F24: 9 | G24: 179 | H24: 27 | I24: 365 | K24: 1.10 | L24: 0.16 | M24: 2.13 | N24: 38.3 % | P24: Kunnari | R24: 10.06. 1997 SMJ - LP 2-0 (1-0, 1-8, 2-0) | AA24: 9. ottelu | AD24: 19 v 10 kk 18 pv | AG24: Kunnari
B26: Seurat | D26: UPV = Ulvilan Pesä-Veikot (1957)
D27: LP = Loimaan Palloilijat (1931)
D28: IPV = Imatran Pallo-Veikot (1955)
D29: KöLa = Köyliön Lallit (1946)

Sheet MYP, MSS
B1: Mikko Virtanen | E1: 23.7.1977
B2: YKKÖSPESIS | E2: Runkosarja | L2: Runkosarja TOP-10 | Q2: Jatkosarjat | X2: SUOMENSARJA | AA2: Runkosarja | AH2: Runkosarja TOP-10 | AM2: Jatkosarjat
B3: Vuosi | C3: Sija | D3: Seura | E3: OTT | F3: KUN | G3: LÖI | H3: TOI | I3: KL | J3: KL-% | L3: LÖI | M3: TOI | N3: L+T | O3: KL | Q3: OTT | R3: KUN | S3: LÖI | T3: TOI | U3: KL | V3: KL-% | X3: Vuosi | Y3: Sija | Z3: Seura | AA3: OTT | AB3: KUN | AC3: LÖI | AD3: TOI | AE3: KL | AF3: KL-% | AH3: LÖI | AI3: TOI | AJ3: L+T | AK3: KL | AM3: OTT | AN3: KUN | AO3: LÖI | AP3: TOI | AQ3: KL | AR3: KL-%
B4: 1995 | C4: 6. | D4: UPV | E4: 19 | F4: 0 | G4: 8 | H4: 4 | I4: 44
B5: 1996 | C5: 6. | D5: UPV | E5: 26 | F5: 4 | G5: 58 | H5: 12 | I5: 96 | L5: 1. | N5: 2.
B6: 1999 | C6: 1. | D6: LP | Q6: 14 | R6: 0 | S6: 14 | T6: 2 | U6: 36
B7: 2003 | C7: 15. | D7: KöLa | E7: 22 | F7: 0 | G7: 35 | H7: 5 | I7: 76 | J7: 47.5 % | K7: 160
X8: 2004 | Y8: 1. | Z8: KöLa | AA8: 15 | AB8: 2 | AC8: 54 | AD8: 12 | AE8: 75 | AF8: 62.0 % | AG8: 121 | AH8: 1. | AJ8: 2. | AM8: 4 | AN8: 0 | AO8: 15 | AP8: 1 | AQ8: 16 | AR8: 51.6 % | AS8: 31
B9: 2005 | C9: 6. | D9: UPV | E9: 22 | F9: 1 | G9: 67 | H9: 6 | I9: 84 | J9: 56.0 % | K9: 150 | L9: 3. | N9: 4. | Q9: 2 | R9: 0 | S9: 2 | T9: 1 | U9: 4 | V9: 57.1 % | W9: 7
B10: 2006 | C10: 3. | D10: UPV | E10: 20 | F10: 0 | G10: 49 | H10: 0 | I10: 73 | J10: 49.7 % | K10: 147 | L10: 8. | Q10: 2 | R10: 0 | S10: 7 | T10: 0 | U10: 11 | V10: 84.6 % | W10: 13
B11: YHTEENSÄ | E11: =SUM(E4:E10) -> 109 | F11: =SUM(F4:F10) -> 5 | G11: =SUM(G4:G10) -> 217 | H11: =SUM(H4:H10) -> 27 | I11: =SUM(I4:I10) -> 373 | J11: 0.0 % | K11: =SUM(K4:K10) -> 457 | Q11: =SUM(Q4:Q10) -> 18 | R11: =SUM(R4:R10) -> 0 | S11: =SUM(S4:S10) -> 23 | T11: =SUM(T4:T10) -> 3 | U11: =SUM(U4:U10) -> 51 | V11: 0.0 % | W11: =SUM(W4:W10) -> 20 | X11: YHTEENSÄ | AA11: =SUM(AA4:AA10) -> 15 | AB11: =SUM(AB4:AB10) -> 2 | AC11: =SUM(AC4:AC10) -> 54 | AD11: =SUM(AD4:AD10) -> 12 | AE11: =SUM(AE4:AE10) -> 75 | AF11: =PRODUCT(AE11/AG11) -> 62.0 % | AG11: =SUM(AG4:AG10) -> 121 | AM11: =SUM(AM4:AM10) -> 4 | AN11: =SUM(AN4:AN10) -> 0 | AO11: =SUM(AO4:AO10) -> 15 | AP11: =SUM(AP4:AP10) -> 1 | AQ11: =SUM(AQ4:AQ10) -> 16 | AR11: =PRODUCT(AQ11/AS11) -> 51.6 % | AS11: =SUM(AS4:AS10) -> 31
B13: KAIKKI OTTELUT | E13: OTT | F13: KUN | G13: LÖI | H13: TOI | I13: KL | J13: KL-% | L13: ka/L | M13: ka/T | N13: ka/l+t | O13: ka/kl | R13: Seurat | T13: UPV = Ulvilan Pesä-Veikot (1957)
B14: SUPERPESIS | E14: 171 | F14: 9 | G14: 179 | H14: 27 | I14: 365 | J14: 38.3 % | K14: =PRODUCT(I14/J14) -> 953.002611 | L14: =PRODUCT((F14+G14)/E14) -> 1.10 | M14: =PRODUCT(H14/E14) -> 0.16 | N14: =PRODUCT((F14+G14+H14)/E14) -> 1.26 | O14: =PRODUCT(I14/E14) -> 2.13 | T14: LP = Loimaan Palloilijat (1931)
B15: YKKÖSPESIS | E15: =PRODUCT(E11+Q11) -> 127 | F15: =PRODUCT(F11+R11) -> 5 | G15: =PRODUCT(G11+S11) -> 240 | H15: =PRODUCT(H11+T11) -> 30 | I15: =PRODUCT(I11+U11) -> 424 | J15: =PRODUCT(238/K15) -> 49.9 % | K15: =PRODUCT(K11+W11) -> 477 | L15: =PRODUCT((F15+G15)/E15) -> 1.93 | M15: =PRODUCT(H15/E15) -> 0.24 | N15: =PRODUCT((F15+G15+H15)/E15) -> 2.17 | O15: =PRODUCT(I15/E15) -> 3.34 | T15: IPV = Imatran Pallo-Veikot (1955)
B16: SUOMENSARJA | E16: =PRODUCT(AA11+AM11) -> 19 | F16: =PRODUCT(AB11+AN11) -> 2 | G16: =PRODUCT(AC11+AO11) -> 69 | H16: =PRODUCT(AD11+AP11) -> 13 | I16: =PRODUCT(AE11+AQ11) -> 91 | J16: =PRODUCT(I16/K16) -> 59.9 % | K16: =PRODUCT(AG11+AS11) -> 152 | L16: =PRODUCT((F16+G16)/E16) -> 3.74 | M16: =PRODUCT(H16/E16) -> 0.68 | N16: =PRODUCT((F16+G16+H16)/E16) -> 4.42 | O16: =PRODUCT(I16/E16) -> 4.79 | T16: KöLa = Köyliön Lallit (1946)
B17: YHTEENSÄ | E17: =SUM(E14:E16) -> 317 | F17: =SUM(F14:F16) -> 16 | G17: 488 | H17: 70 | I17: 880 | J17: =PRODUCT(694/K17) -> 43.9 % | K17: =SUM(K14:K16) -> 1582.002611 | L17: =PRODUCT((F17+G17)/E17) -> 1.59 | M17: =PRODUCT(H17/E17) -> 0.22 | N17: =PRODUCT((F17+G17+H17)/E17) -> 1.81 | O17: =PRODUCT(I17/E17) -> 2.78

Sheet Arvo-ottelut
B1: ITÄ - LÄNSI - KORTTI
B2: Mikko Virtanen | C2: 23.7.1977
B3: C - POJAT | C3: Itä - Länsi, tulos | D3: Joukkue | E3: Seura | G3: V | H3: T | I3: H | J3: Up. | K3: Lj. | L3: Palk. | M3: O | N3: K | O3: L | P3: T | Q3: KL | R3: 1 | S3: 2 | T3: 3 | U3: k | V3: KL-% | W3: Pelinjohtaja | X3: Yleisöä
B4: 22.07. 1992 Loimaa | C4: 2-25 | D4: Länsi | G4: 1 | L4: II p | M4: 1 | N4: 1 | O4: 4 | P4: 2 | W4: Hannu Pelkonen | X4: 1037
B6: A-POJAT | C6: Itä - Länsi, tulos | D6: Joukkue | E6: Seura | G6: V | H6: T | I6: H | J6: Up. | K6: Lj. | L6: Palk. | M6: O | N6: K | O6: L | P6: T | Q6: KL | R6: 1 | S6: 2 | T6: 3 | U6: k | V6: KL-% | W6: Pelinjohtaja | X6: Yleisöä
B7: 13.07. 1996 Kitee | C7: 2-0 (6-1, 1-0) | D7: Länsi | E7: UPV | I7: 1 | K7: jok | M7: 1 | Q7: 0/4 | U7: 0/4 | V7: 0.0 % | W7: Jari Alasmäki | X7: 4798
B8: 16.08. 1997 Hyvinkää | C8: 0-2 (0-7, 2-3) | D8: Länsi | E8: UPV | G8: 1 | K8: jok | M8: 1 | O8: 1 | P8: 1 | Q8: 2/5 | T8: 1/1 | U8: 1/4 | V8: 40.0 % | W8: Hannu Holma | X8: 2053
B9: Yhteensä | G9: 1 | I9: 1 | M9: =SUM(M7:M8) -> 2 | P9: 1 | Q9: 2/9 | T9: 1/1 | U9: 1/8 | V9: 22.2 %

Sheet Kärkilyönnit
B1: KÄRKILYÖNNIT RUNKOSARJASSA | V1: VUOSITTAISET SIJOITUKSET TOP - 30
G2: 0 > 1 | J2: 1 > 2 | M2: 2 > 3 | P2: 3 > k | S2: Yhteensä
B3: Vuosi | C3: Sija | D3: Seura | E3: OTT | F3: KL | G3: YHT | H3: % | I3: KL | J3: YHT | K3: % | L3: KL | M3: YHT | N3: % | O3: KL | P3: YHT | Q3: % | R3: KL | S3: YHT | T3: % | V3: Vuosi | W3: Sija | X3: Seura | Y3: 0 > 1 | Z3: 1 > 2 | AA3: 2 > 3 | AB3: 3 > k | AC3: KL
B4: 1997 | C4: 6. | D4: LP | E4: 26 | F4: 2 | G4: 4 | H4: =PRODUCT(F4/G4) -> 50.0 % | I4: 0 | J4: 3 | K4: =PRODUCT(I4/J4) -> 0.0 % | L4: 9 | M4: 23 | N4: =PRODUCT(L4/M4) -> 39.1 % | O4: 32 | P4: 90 | Q4: =PRODUCT(O4/P4) -> 35.6 % | R4: 43 | S4: =PRODUCT(G4+J4+M4+P4) -> 120 | T4: 35.8 % | V4: 1997 | W4: 6. | X4: LP | AB4: 20.
B5: 1998 | C5: 11. | D5: LP | E5: 28 | F5: 21 | G5: 33 | H5: 63.6 % | I5: 6 | J5: 24 | K5: 25.0 % | L5: 13 | M5: 36 | N5: 36.1 % | O5: 17 | P5: 51 | Q5: 33.3 % | R5: 57 | S5: 144 | T5: 39.6 % | V5: 1998 | W5: 11. | X5: LP
B6: 1999 | V6: 1999
B7: 2000 | C7: 11. | D7: LP | E7: 28 | F7: 18 | G7: 36 | H7: 50.0 % | I7: 10 | J7: 33 | K7: 30.3 % | L7: 13 | M7: 40 | N7: 32.5 % | O7: 21 | P7: 58 | Q7: 36.2 % | R7: 62 | S7: 167 | T7: 37.1 % | V7: 2000 | W7: 11. | X7: LP
B8: 2001 | C8: 9. | D8: IPV | E8: 27 | F8: 1 | G8: 3 | H8: 33.3 % | I8: 1 | J8: 7 | K8: 14.3 % | L8: 12 | M8: 31 | N8: 38.7 % | O8: 39 | P8: 112 | Q8: 34.8 % | R8: 53 | S8: 153 | T8: 34.6 % | V8: 2001 | W8: 9. | X8: IPV | AB8: 25.
B9: 2002 | C9: 9. | D9: IPV | E9: 29 | F9: 1 | G9: 5 | H9: 20.0 % | I9: 10 | J9: 18 | K9: 55.6 % | L9: 21 | M9: 41 | N9: 51.2 % | O9: 40 | P9: 117 | Q9: 34.2 % | R9: 72 | S9: 181 | T9: 39.8 % | V9: 2002 | W9: 9. | X9: IPV | AB9: 13.
B10: Yhteensä | E10: =SUM(E4:E9) -> 138 | F10: =SUM(F4:F9) -> 43 | G10: =SUM(G4:G9) -> 81 | H10: =PRODUCT(F10/G10) -> 53.1 % | I10: =SUM(I4:I9) -> 27 | J10: =SUM(J4:J9) -> 85 | K10: =PRODUCT(I10/J10) -> 31.8 % | L10: =SUM(L4:L9) -> 68 | M10: =SUM(M4:M9) -> 171 | N10: =PRODUCT(L10/M10) -> 39.8 % | O10: =SUM(O4:O9) -> 149 | P10: =SUM(P4:P9) -> 428 | Q10: =PRODUCT(O10/P10) -> 34.8 % | R10: =SUM(R4:R9) -> 287 | S10: =SUM(S4:S9) -> 765 | T10: =PRODUCT(R10/S10) -> 37.5 %
B12: KÄRKILYÖNNIT YLEMMISSÄ PUDOTUSPELEISSÄ | V12: VUOSITTAISET SIJOITUKSET TOP - 30
G13: 0 > 1 | J13: 1 > 2 | M13: 2 > 3 | P13: 3 > k | S13: Yhteensä
B14: Vuosi | C14: Sija | D14: Seura | E14: OTT | F14: KL | G14: YHT | H14: % | I14: KL | J14: YHT | K14: % | L14: KL | M14: YHT | N14: % | O14: KL | P14: YHT | Q14: % | R14: KL | S14: YHT | T14: % | V14: Vuosi | W14: Sija | X14: Seura | Y14: 0 > 1 | Z14: 1 > 2 | AA14: 2 > 3 | AB14: 3 > k | AC14: KL
B15: 1997 | C15: 7. | D15: LP | E15: 3 | F15: 0 | G15: 0 | H15: 0.0 % | I15: 0 | J15: 0 | K15: 0.0 % | L15: 1 | M15: 3 | N15: 33.3 % | O15: 2 | P15: 4 | Q15: 50.0 % | R15: 3 | S15: 7 | T15: 42.9 % | V15: 1997 | W15: 7. | X15: LP
B16: 1998 | C16: 13. | D16: LP | V16: 1998 | W16: 13. | X16: LP
B17: 1999 | V17: 1999
B18: 2000 | C18: 11. | D18: LP | V18: 2000 | W18: 11. | X18: LP
B19: 2001 | C19: 9. | D19: IPV | V19: 2001 | W19: 9. | X19: IPV
B20: 2002 | C20: 10. | D20: IPV | V20: 2002 | W20: 10. | X20: IPV
B21: Yhteensä | E21: =SUM(E13:E20) -> 3 | F21: =SUM(F15:F20) -> 0 | G21: =SUM(G15:G20) -> 0 | H21: =PRODUCT(F21/G21) ->  | I21: =SUM(I15:I20) -> 0 | J21: =SUM(J15:J20) -> 0 | K21: =PRODUCT(I21/J21) ->  | L21: =SUM(L15:L20) -> 1 | M21: =SUM(M15:M20) -> 3 | N21: =PRODUCT(L21/M21) -> 33.3 % | O21: =SUM(O15:O20) -> 2 | P21: =SUM(P15:P20) -> 4 | Q21: =PRODUCT(O21/P21) -> 50.0 % | R21: =SUM(R15:R20) -> 3 | S21: =SUM(S15:S20) -> 7 | T21: =PRODUCT(R21/S21) -> 42.9 %
B23: KÄRKILYÖNNIT
G24: 0 > 1 | J24: 1 > 2 | M24: 2 > 3 | P24: 3 > k | S24: Yhteensä
E25: OTT | F25: KL | G25: YHT | H25: % | I25: KL | J25: YHT | K25: % | L25: KL | M25: YHT | N25: % | O25: KL | P25: YHT | Q25: % | R25: KL | S25: YHT | T25: %
B26: RUNKOSARJA | E26: =PRODUCT(E10) -> 138 | F26: =PRODUCT(F10) -> 43 | G26: =PRODUCT(G10) -> 81 | H26: =PRODUCT(H10) -> 53.1 % | I26: =PRODUCT(I10) -> 27 | J26: =PRODUCT(J10) -> 85 | K26: =PRODUCT(K10) -> 31.8 % | L26: =PRODUCT(L10) -> 68 | M26: =PRODUCT(M10) -> 171 | N26: =PRODUCT(N10) -> 39.8 % | O26: =PRODUCT(O10) -> 149 | P26: =PRODUCT(P10) -> 428 | Q26: =PRODUCT(Q10) -> 34.8 % | R26: =PRODUCT(R10) -> 287 | S26: =PRODUCT(S10) -> 765 | T26: =PRODUCT(T10) -> 37.5 %
B27: PLAY OFF | E27: =PRODUCT(E21) -> 3 | F27: =PRODUCT(F21) -> 0 | G27: 0 | I27: 0 | J27: 0 | L27: 1 | M27: 3 | N27: 33.3 % | O27: 2 | P27: 4 | Q27: 50.0 % | R27: 3 | S27: 7 | T27: 42.9 %
